[Event "Early-Titled-Tuesday-Blitz-February-13-2024"]
[Site "Chess.com"]
[Date "2024.02.13"]
[Round "9"]
[White "m_ezat"]
[Black "N_I_Chess"]
[Result "1-0"]
[WhiteElo "2437"]
[BlackElo "2295"]
[TimeControl "180+1"]
[EndTime "9:48:22 PST"]
[Termination "m_ezat won on time"]

1. d4 {[%clk 0:03:00.9]} 1... Nf6 {[%clk 0:02:49.6]} 2. c4 {[%clk 0:03:00.3]}
2... e6 {[%clk 0:02:48.7]} 3. Nc3 {[%clk 0:02:31.5]} 3... Bb4 {[%clk 0:02:47]}
4. e3 {[%clk 0:02:30.4]} 4... O-O {[%clk 0:02:46.1]} 5. a3 {[%clk 0:02:24]} 5...
Bxc3+ {[%clk 0:02:35.2]} 6. bxc3 {[%clk 0:02:23]} 6... Nc6 {[%clk 0:02:28.7]} 7.
Bd3 {[%clk 0:02:21]} 7... e5 {[%clk 0:02:26.7]} 8. Ne2 {[%clk 0:02:15.9]} 8...
b6 {[%clk 0:02:20.3]} 9. O-O {[%clk 0:02:14.4]} 9... Ba6 {[%clk 0:02:02.8]} 10.
e4 {[%clk 0:01:28.4]} 10... h6 {[%clk 0:01:43.5]} 11. f4 {[%clk 0:01:18.8]}
11... exd4 {[%clk 0:01:31.9]} 12. e5 {[%clk 0:01:00.3]} 12... Ne8 {[%clk
0:01:08.3]} 13. cxd4 {[%clk 0:00:58.8]} 13... Na5 {[%clk 0:00:55]} 14. f5 {[%clk
0:00:52.5]} 14... f6 {[%clk 0:00:41.3]} 15. Nf4 {[%clk 0:00:45.2]} 15... Bxc4
{[%clk 0:00:26.8]} 16. Bxc4+ {[%clk 0:00:44.5]} 16... Nxc4 {[%clk 0:00:27.7]}
17. Qb3 {[%clk 0:00:43]} 17... d5 {[%clk 0:00:26.5]} 18. Ne6 {[%clk 0:00:43]}
18... Qd7 {[%clk 0:00:22.9]} 19. Nxf8 {[%clk 0:00:42.9]} 19... Kxf8 {[%clk
0:00:19.2]} 20. Bf4 {[%clk 0:00:38]} 20... a5 {[%clk 0:00:16.5]} 21. Qg3 {[%clk
0:00:33.8]} 21... c6 {[%clk 0:00:14.8]} 22. Rae1 {[%clk 0:00:30.2]} 22... Qf7
{[%clk 0:00:12.3]} 23. Qg4 {[%clk 0:00:27.9]} 23... Nxa3 {[%clk 0:00:06.4]} 24.
Rf3 {[%clk 0:00:26.5]} 24... Nc4 {[%clk 0:00:06.3]} 25. Rg3 {[%clk 0:00:18.7]}
25... a4 {[%clk 0:00:06.5]} 26. e6 {[%clk 0:00:16.4]} 26... Qe7 {[%clk
0:00:04.9]} 27. Bxh6 {[%clk 0:00:16.1]} 27... Ra7 {[%clk 0:00:04.8]} 28. Qh5
{[%clk 0:00:13.4]} 28... Ned6 {[%clk 0:00:01.4]} 29. Bf4 {[%clk 0:00:07.1]} 1-0

[Event "Early-Titled-Tuesday-Blitz-February-13-2024"]
[Site "Chess.com"]
[Date "2024.02.13"]
[Round "9"]
[White "ChessBliss09"]
[Black "LaPiToB"]
[Result "0-1"]
[WhiteElo "2131"]
[BlackElo "2311"]
[TimeControl "180+1"]
[EndTime "9:48:22 PST"]
[Termination "LaPiToB won by checkmate"]

1. c4 {[%clk 0:03:00.9]} 1... Nf6 {[%clk 0:02:57.3]} 2. Nc3 {[%clk 0:03:00.4]}
2... c5 {[%clk 0:02:51]} 3. Nf3 {[%clk 0:02:54.6]} 3... Nc6 {[%clk 0:02:49.1]}
4. d4 {[%clk 0:02:53.6]} 4... cxd4 {[%clk 0:02:48.5]} 5. Nxd4 {[%clk 0:02:54.5]}
5... g6 {[%clk 0:02:44.7]} 6. g3 {[%clk 0:02:53.9]} 6... Bg7 {[%clk 0:02:44.7]}
7. Bg2 {[%clk 0:02:53.7]} 7... O-O {[%clk 0:02:44.7]} 8. O-O {[%clk 0:02:53.8]}
8... Nxd4 {[%clk 0:02:35.3]} 9. Qxd4 {[%clk 0:02:53.3]} 9... d6 {[%clk
0:02:34.6]} 10. e4 {[%clk 0:02:51.7]} 10... a6 {[%clk 0:02:31]} 11. Qd3 {[%clk
0:02:49.6]} 11... Be6 {[%clk 0:02:28.3]} 12. b3 {[%clk 0:02:46.5]} 12... Rc8
{[%clk 0:02:23.9]} 13. Bb2 {[%clk 0:02:46.3]} 13... Ng4 {[%clk 0:02:16.6]} 14.
h3 {[%clk 0:02:27.8]} 14... Ne5 {[%clk 0:02:15.5]} 15. Qd2 {[%clk 0:02:27.7]}
15... Qa5 {[%clk 0:01:57.4]} 16. Rfd1 {[%clk 0:02:17.6]} 16... Rfd8 {[%clk
0:01:54.6]} 17. f4 {[%clk 0:02:04.9]} 17... Nc6 {[%clk 0:01:43.6]} 18. Nd5
{[%clk 0:02:03.1]} 18... Qxd2 {[%clk 0:01:41.7]} 19. Rxd2 {[%clk 0:02:02.7]}
19... Bxb2 {[%clk 0:01:36.8]} 20. Rxb2 {[%clk 0:02:02.1]} 20... b5 {[%clk
0:01:29.8]} 21. Rc1 {[%clk 0:01:43.5]} 21... Bxd5 {[%clk 0:01:23]} 22. cxd5
{[%clk 0:01:34.7]} 22... Nb4 {[%clk 0:01:22.9]} 23. Rxc8 {[%clk 0:01:21.1]}
23... Rxc8 {[%clk 0:01:23.8]} 24. a3 {[%clk 0:01:20.9]} 24... Nd3 {[%clk
0:01:21.7]} 25. Rd2 {[%clk 0:01:18.4]} 25... Rc1+ {[%clk 0:01:17.6]} 26. Kh2
{[%clk 0:01:17.6]} 26... Ne1 {[%clk 0:01:17.8]} 27. e5 {[%clk 0:01:13.3]} 27...
Rc3 {[%clk 0:01:10.9]} 28. Re2 {[%clk 0:00:27]} 28... Nxg2 {[%clk 0:01:04.9]}
29. Kxg2 {[%clk 0:00:27.9]} 29... Rxb3 {[%clk 0:01:05]} 30. exd6 {[%clk
0:00:27.8]} 30... exd6 {[%clk 0:01:05.3]} 31. Re8+ {[%clk 0:00:28]} 31... Kg7
{[%clk 0:01:04.8]} 32. Rd8 {[%clk 0:00:27]} 32... Rxa3 {[%clk 0:01:04.9]} 33.
Rxd6 {[%clk 0:00:27.1]} 33... a5 {[%clk 0:01:05.4]} 34. Rb6 {[%clk 0:00:27]}
34... b4 {[%clk 0:01:05.8]} 35. d6 {[%clk 0:00:27.4]} 35... Rd3 {[%clk
0:01:05.9]} 36. Ra6 {[%clk 0:00:23]} 36... Rd5 {[%clk 0:01:06]} 37. d7 {[%clk
0:00:22.2]} 37... Rxd7 {[%clk 0:01:06.2]} 38. Rxa5 {[%clk 0:00:22.5]} 38... Rb7
{[%clk 0:01:06.9]} 39. Ra2 {[%clk 0:00:21.6]} 39... b3 {[%clk 0:01:07.1]} 40.
Rb2 {[%clk 0:00:22.3]} 40... Kf6 {[%clk 0:01:07.7]} 41. Kf3 {[%clk 0:00:21.9]}
41... Ke6 {[%clk 0:01:08.3]} 42. Ke4 {[%clk 0:00:21.7]} 42... f5+ {[%clk
0:01:08.3]} 43. Ke3 {[%clk 0:00:21.5]} 43... Kd5 {[%clk 0:01:08.4]} 44. Kd3
{[%clk 0:00:20.9]} 44... Rb4 {[%clk 0:01:06.6]} 45. Kc3 {[%clk 0:00:20.3]} 45...
Rb7 {[%clk 0:01:05.3]} 46. Rd2+ {[%clk 0:00:19.5]} 46... Ke4 {[%clk 0:01:05.2]}
47. Kb2 {[%clk 0:00:16.1]} 47... Kf3 {[%clk 0:01:04.6]} 48. Rd3+ {[%clk
0:00:16.2]} 48... Kf2 {[%clk 0:01:05]} 49. h4 {[%clk 0:00:16.2]} 49... Re7
{[%clk 0:01:02.1]} 50. Kxb3 {[%clk 0:00:15.4]} 50... Re3 {[%clk 0:01:02]} 51.
Rxe3 {[%clk 0:00:14.7]} 51... Kxe3 {[%clk 0:01:02.9]} 52. Kc2 {[%clk 0:00:13.4]}
52... Kf3 {[%clk 0:01:03.2]} 53. Kd3 {[%clk 0:00:14]} 53... Kxg3 {[%clk
0:01:03.7]} 54. Ke3 {[%clk 0:00:14.5]} 54... Kxh4 {[%clk 0:01:03.9]} 55. Kf3
{[%clk 0:00:15.2]} 55... Kh3 {[%clk 0:01:03.6]} 56. Kf2 {[%clk 0:00:15.8]} 56...
Kg4 {[%clk 0:01:03]} 57. Kg2 {[%clk 0:00:16.4]} 57... Kxf4 {[%clk 0:01:02.9]}
58. Kh3 {[%clk 0:00:16.7]} 58... g5 {[%clk 0:01:03.3]} 59. Kh2 {[%clk
0:00:17.3]} 59... h5 {[%clk 0:01:04]} 60. Kh3 {[%clk 0:00:18]} 60... h4 {[%clk
0:01:04.1]} 61. Kg2 {[%clk 0:00:18.9]} 61... g4 {[%clk 0:01:04.3]} 62. Kh2
{[%clk 0:00:18.9]} 62... Kf3 {[%clk 0:01:03.9]} 63. Kg1 {[%clk 0:00:19]} 63...
Kg3 {[%clk 0:01:04]} 64. Kh1 {[%clk 0:00:19.5]} 64... h3 {[%clk 0:01:02.9]} 65.
Kg1 {[%clk 0:00:20.4]} 65... f4 {[%clk 0:01:02.9]} 66. Kh1 {[%clk 0:00:21.3]}
66... Kf2 {[%clk 0:01:01.3]} 67. Kh2 {[%clk 0:00:21.3]} 67... g3+ {[%clk
0:01:01.5]} 68. Kh1 {[%clk 0:00:21.8]} 68... g2+ {[%clk 0:01:02.2]} 69. Kh2
{[%clk 0:00:22.4]} 69... g1=Q+ {[%clk 0:01:02.8]} 70. Kxh3 {[%clk 0:00:23.1]}
70... Qg3# {[%clk 0:01:03.3]} 0-1

[Event "Early-Titled-Tuesday-Blitz-February-13-2024"]
[Site "Chess.com"]
[Date "2024.02.13"]
[Round "9"]
[White "Balla_Tamas"]
[Black "bilosuvenosu06"]
[Result "0-1"]
[WhiteElo "2409"]
[BlackElo "2541"]
[TimeControl "180+1"]
[EndTime "9:48:23 PST"]
[Termination "bilosuvenosu06 won by resignation"]

1. e4 {[%clk 0:02:59.3]} 1... g6 {[%clk 0:02:47.3]} 2. d4 {[%clk 0:02:58.6]}
2... Bg7 {[%clk 0:02:47.7]} 3. Nf3 {[%clk 0:02:56.4]} 3... d6 {[%clk 0:02:48.3]}
4. Bc4 {[%clk 0:02:56.5]} 4... e6 {[%clk 0:02:46.8]} 5. c3 {[%clk 0:02:55.6]}
5... Ne7 {[%clk 0:02:46.9]} 6. O-O {[%clk 0:02:55.3]} 6... h6 {[%clk 0:02:46.8]}
7. Re1 {[%clk 0:02:52.2]} 7... O-O {[%clk 0:02:46.4]} 8. e5 {[%clk 0:02:51.4]}
8... Nbc6 {[%clk 0:02:44.5]} 9. exd6 {[%clk 0:02:43.1]} 9... Qxd6 {[%clk
0:02:44.3]} 10. Nbd2 {[%clk 0:02:36.6]} 10... Nd5 {[%clk 0:02:36.2]} 11. Ne4
{[%clk 0:02:34.1]} 11... Qd8 {[%clk 0:02:36.5]} 12. h3 {[%clk 0:02:08.3]} 12...
Kh7 {[%clk 0:02:36.5]} 13. Bb3 {[%clk 0:01:59.8]} 13... b6 {[%clk 0:01:52.8]}
14. h4 {[%clk 0:01:57.8]} 14... f5 {[%clk 0:01:48.6]} 15. Ng3 {[%clk 0:01:45.8]}
15... Re8 {[%clk 0:01:46.5]} 16. Bc2 {[%clk 0:01:35.5]} 16... Bd7 {[%clk
0:01:38.7]} 17. a3 {[%clk 0:01:29.4]} 17... Nf6 {[%clk 0:01:25.5]} 18. c4 {[%clk
0:01:24.5]} 18... Ng4 {[%clk 0:01:21.6]} 19. Bf4 {[%clk 0:01:14.9]} 19... e5
{[%clk 0:01:12.9]} 20. dxe5 {[%clk 0:01:09.2]} 20... Ncxe5 {[%clk 0:01:05.4]}
21. Nxe5 {[%clk 0:01:09]} 21... Bxe5 {[%clk 0:00:53.8]} 22. Bxe5 {[%clk
0:01:05.1]} 22... Rxe5 {[%clk 0:00:52.9]} 23. Rxe5 {[%clk 0:01:02.3]} 23... Nxe5
{[%clk 0:00:53.8]} 24. h5 {[%clk 0:01:03]} 24... Be6 {[%clk 0:00:34]} 25. hxg6+
{[%clk 0:01:00.3]} 25... Nxg6 {[%clk 0:00:30]} 26. Qh5 {[%clk 0:00:56]} 26...
Qh4 {[%clk 0:00:17.1]} 27. Qf3 {[%clk 0:00:49.8]} 27... Rf8 {[%clk 0:00:14.4]}
28. Re1 {[%clk 0:00:49.3]} 28... Qf6 {[%clk 0:00:13.6]} 29. Nh5 {[%clk
0:00:38.8]} 29... Qf7 {[%clk 0:00:12.9]} 30. b3 {[%clk 0:00:33.3]} 30... Nh4
{[%clk 0:00:11.9]} 31. Qe2 {[%clk 0:00:18.2]} 31... Qg6 {[%clk 0:00:11]} 32. Nf4
{[%clk 0:00:15.8]} 32... Qg5 {[%clk 0:00:10.3]} 33. Qxe6 {[%clk 0:00:10.7]}
33... Nf3+ {[%clk 0:00:09]} 34. Kf1 {[%clk 0:00:07.9]} 34... Nxe1 {[%clk
0:00:07.5]} 35. Qe7+ {[%clk 0:00:07.1]} 35... Qxe7 {[%clk 0:00:07.5]} 0-1

[Event "Early-Titled-Tuesday-Blitz-February-13-2024"]
[Site "Chess.com"]
[Date "2024.02.13"]
[Round "9"]
[White "only_strong_moves"]
[Black "winniethepooh04"]
[Result "1-0"]
[WhiteElo "2683"]
[BlackElo "2537"]
[TimeControl "180+1"]
[EndTime "9:48:24 PST"]
[Termination "only_strong_moves won by resignation"]

1. d4 {[%clk 0:03:00.1]} 1... e6 {[%clk 0:03:00.2]} 2. c4 {[%clk 0:02:59.6]}
2... d5 {[%clk 0:03:00.9]} 3. Nf3 {[%clk 0:02:59.9]} 3... Nf6 {[%clk 0:03:00.5]}
4. Nc3 {[%clk 0:03:00.3]} 4... a6 {[%clk 0:03:01.2]} 5. cxd5 {[%clk 0:02:59.3]}
5... exd5 {[%clk 0:03:02.1]} 6. Bg5 {[%clk 0:02:59.8]} 6... Be6 {[%clk
0:03:02.5]} 7. e3 {[%clk 0:02:58.9]} 7... Nbd7 {[%clk 0:03:03]} 8. Bd3 {[%clk
0:02:57.9]} 8... Bd6 {[%clk 0:03:03.6]} 9. Bf4 {[%clk 0:02:56.4]} 9... O-O
{[%clk 0:03:01.7]} 10. Bxd6 {[%clk 0:02:54.2]} 10... cxd6 {[%clk 0:03:02.6]} 11.
h3 {[%clk 0:02:47.8]} 11... Re8 {[%clk 0:03:02.3]} 12. O-O {[%clk 0:02:48]}
12... h6 {[%clk 0:03:01.2]} 13. Qb3 {[%clk 0:02:46.1]} 13... Qb6 {[%clk
0:03:00.8]} 14. Qa3 {[%clk 0:02:44.7]} 14... a5 {[%clk 0:02:45.5]} 15. Rac1
{[%clk 0:02:43.7]} 15... Rec8 {[%clk 0:02:42.9]} 16. Na4 {[%clk 0:02:42.8]}
16... Qb4 {[%clk 0:02:42.8]} 17. Nc3 {[%clk 0:02:35.3]} 17... Nb6 {[%clk
0:02:29.9]} 18. Nb5 {[%clk 0:02:29]} 18... Ne8 {[%clk 0:02:28.8]} 19. b3 {[%clk
0:02:16.4]} 19... Rxc1 {[%clk 0:02:21.7]} 20. Rxc1 {[%clk 0:02:02]} 20... Qxa3
{[%clk 0:02:17]} 21. Nxa3 {[%clk 0:02:01.7]} 21... Rc8 {[%clk 0:02:16.5]} 22.
Rxc8 {[%clk 0:02:01.6]} 22... Nxc8 {[%clk 0:02:16]} 23. Nb5 {[%clk 0:02:00.8]}
23... Kf8 {[%clk 0:02:12.4]} 24. Nd2 {[%clk 0:01:59.2]} 24... Ke7 {[%clk
0:02:10.8]} 25. f4 {[%clk 0:01:58.9]} 25... Bd7 {[%clk 0:02:08.6]} 26. Nc3
{[%clk 0:01:58.7]} 26... Nc7 {[%clk 0:02:07.4]} 27. a3 {[%clk 0:01:52.6]} 27...
Na7 {[%clk 0:02:06]} 28. b4 {[%clk 0:01:51.5]} 28... axb4 {[%clk 0:02:04.5]} 29.
axb4 {[%clk 0:01:52.4]} 29... Bb5 {[%clk 0:01:52.8]} 30. Bc2 {[%clk 0:01:41.6]}
30... Bc6 {[%clk 0:01:51.5]} 31. Bb3 {[%clk 0:01:38.7]} 31... Nab5 {[%clk
0:01:51]} 32. Ndb1 {[%clk 0:01:33.1]} 32... Na7 {[%clk 0:01:45.2]} 33. Na3
{[%clk 0:01:31.4]} 33... b5 {[%clk 0:01:40]} 34. Nc2 {[%clk 0:01:30.7]} 34...
Nc8 {[%clk 0:01:38.8]} 35. Kf2 {[%clk 0:01:17.8]} 35... Nb6 {[%clk 0:01:38.9]}
36. g4 {[%clk 0:01:17.9]} 36... Nc4 {[%clk 0:01:30.7]} 37. Bxc4 {[%clk 0:01:18]}
37... dxc4 {[%clk 0:01:31.1]} 38. e4 {[%clk 0:01:18.4]} 38... g5 {[%clk
0:01:25.3]} 39. d5 {[%clk 0:01:15.7]} 39... Bd7 {[%clk 0:01:24.5]} 40. f5 {[%clk
0:01:10.8]} 40... f6 {[%clk 0:01:20.3]} 41. Ke3 {[%clk 0:01:10.9]} 41... Kf7
{[%clk 0:01:09.3]} 42. Nd4 {[%clk 0:01:09.5]} 42... Ke8 {[%clk 0:01:03.7]} 43.
Ne6 {[%clk 0:01:08.2]} 43... Na6 {[%clk 0:01:01.2]} 44. Kd4 {[%clk 0:01:04.6]}
44... Ke7 {[%clk 0:00:57.3]} 45. Na2 {[%clk 0:01:02.1]} 45... Ke8 {[%clk
0:00:56.1]} 46. Kc3 {[%clk 0:00:56.9]} 46... Ke7 {[%clk 0:00:54.6]} 47. Nc1
{[%clk 0:00:57.2]} 47... Bxe6 {[%clk 0:00:44.5]} 48. fxe6 {[%clk 0:00:53.5]}
48... Nc7 {[%clk 0:00:39.6]} 49. Ne2 {[%clk 0:00:53.8]} 49... Ne8 {[%clk
0:00:35.4]} 50. Nd4 {[%clk 0:00:54.2]} 50... Nc7 {[%clk 0:00:34.1]} 51. Nf5+
{[%clk 0:00:54.4]} 51... Kf8 {[%clk 0:00:27.7]} 52. Nxd6 {[%clk 0:00:54.1]}
52... Ke7 {[%clk 0:00:27.9]} 53. Nf5+ {[%clk 0:00:54.3]} 53... Kf8 {[%clk
0:00:28.4]} 54. Nxh6 {[%clk 0:00:53.8]} 54... Kg7 {[%clk 0:00:28.3]} 55. Nf5+
{[%clk 0:00:54.2]} 55... Kf8 {[%clk 0:00:28.4]} 56. Kd4 {[%clk 0:00:53.3]} 56...
Na6 {[%clk 0:00:27.5]} 57. d6 {[%clk 0:00:50.1]} 57... Nxb4 {[%clk 0:00:27]} 58.
d7 {[%clk 0:00:48.4]} 58... Nc6+ {[%clk 0:00:27.5]} 59. Kc5 {[%clk 0:00:48.1]}
1-0

[Event "Early-Titled-Tuesday-Blitz-February-13-2024"]
[Site "Chess.com"]
[Date "2024.02.13"]
[Round "9"]
[White "giovannibrandao7"]
[Black "Matols"]
[Result "1-0"]
[WhiteElo "2267"]
[BlackElo "2384"]
[TimeControl "180+1"]
[EndTime "9:48:25 PST"]
[Termination "giovannibrandao7 won by checkmate"]

1. e4 {[%clk 0:02:58.4]} 1... c6 {[%clk 0:03:00.2]} 2. d4 {[%clk 0:02:58.3]}
2... d5 {[%clk 0:03:00.5]} 3. Nc3 {[%clk 0:02:59]} 3... dxe4 {[%clk 0:02:59.2]}
4. Nxe4 {[%clk 0:02:59.9]} 4... Nf6 {[%clk 0:02:59.3]} 5. Ng5 {[%clk 0:03:00.2]}
5... Bf5 {[%clk 0:02:54]} 6. N1f3 {[%clk 0:02:56.3]} 6... e6 {[%clk 0:02:51.3]}
7. Bc4 {[%clk 0:02:51.4]} 7... h6 {[%clk 0:02:48.2]} 8. Nxf7 {[%clk 0:02:50.3]}
8... Kxf7 {[%clk 0:02:47.7]} 9. Ne5+ {[%clk 0:02:50.7]} 9... Kg8 {[%clk
0:02:47.5]} 10. g4 {[%clk 0:02:50.4]} 10... b5 {[%clk 0:02:22.2]} 11. Bb3 {[%clk
0:02:47.3]} 11... Be4 {[%clk 0:02:08.4]} 12. Bxe6+ {[%clk 0:02:45.8]} 12... Kh7
{[%clk 0:02:08.2]} 13. g5 {[%clk 0:02:46.5]} 13... hxg5 {[%clk 0:01:42]} 14. Nf7
{[%clk 0:02:46.3]} 14... Qc7 {[%clk 0:01:28.3]} 15. Nxg5+ {[%clk 0:02:42.4]}
15... Kg6 {[%clk 0:01:26.6]} 16. Nxe4 {[%clk 0:02:14]} 16... Bb4+ {[%clk
0:01:17.9]} 17. Kf1 {[%clk 0:01:48.3]} 17... Nxe4 {[%clk 0:00:46.8]} 18. Qg4+
{[%clk 0:01:45.1]} 18... Kf6 {[%clk 0:00:46.5]} 19. Qxe4 {[%clk 0:01:23.3]}
19... Rh5 {[%clk 0:00:28.9]} 20. Qf3+ {[%clk 0:00:42.4]} 20... Kxe6 {[%clk
0:00:26.2]} 21. Qxh5 {[%clk 0:00:41.6]} 21... Nd7 {[%clk 0:00:23.8]} 22. Qg6+
{[%clk 0:00:39.9]} 22... Nf6 {[%clk 0:00:14.9]} 23. Bg5 {[%clk 0:00:24.7]} 23...
Rf8 {[%clk 0:00:08.9]} 24. c3 {[%clk 0:00:24]} 24... Bd6 {[%clk 0:00:08.3]} 25.
Re1+ {[%clk 0:00:23.5]} 25... Kd5 {[%clk 0:00:07.2]} 26. Qf5+ {[%clk 0:00:21.5]}
26... Kc4 {[%clk 0:00:07.2]} 27. b3+ {[%clk 0:00:21.2]} 27... Kxc3 {[%clk
0:00:07.4]} 28. Rc1+ {[%clk 0:00:10.2]} 28... Kb4 {[%clk 0:00:07.2]} 29. Bd2+
{[%clk 0:00:06.5]} 29... Ka3 {[%clk 0:00:07.1]} 30. Rc2 {[%clk 0:00:02.6]} 30...
Nd5 {[%clk 0:00:04.7]} 31. Qd3 {[%clk 0:00:02.4]} 31... Nf4 {[%clk 0:00:01.1]}
32. Bc1+ {[%clk 0:00:02.3]} 32... Kb4 {[%clk 0:00:01.3]} 33. Qc3# {[%clk
0:00:02.6]} 1-0

[Event "Early-Titled-Tuesday-Blitz-February-13-2024"]
[Site "Chess.com"]
[Date "2024.02.13"]
[Round "9"]
[White "Ducke13"]
[Black "Kotlyar_K"]
[Result "0-1"]
[WhiteElo "2324"]
[BlackElo "2534"]
[TimeControl "180+1"]
[EndTime "9:48:26 PST"]
[Termination "Kotlyar_K won on time"]

1. d4 {[%clk 0:02:55.5]} 1... Nf6 {[%clk 0:02:58.4]} 2. g3 {[%clk 0:02:55.1]}
2... d5 {[%clk 0:02:52.9]} 3. Nf3 {[%clk 0:02:54.4]} 3... g6 {[%clk 0:02:53.1]}
4. Bg2 {[%clk 0:02:53.7]} 4... Bg7 {[%clk 0:02:53.7]} 5. c4 {[%clk 0:02:53.3]}
5... c6 {[%clk 0:02:53.2]} 6. cxd5 {[%clk 0:02:42.3]} 6... cxd5 {[%clk
0:02:54.1]} 7. Nc3 {[%clk 0:02:41.8]} 7... O-O {[%clk 0:02:53.2]} 8. Ne5 {[%clk
0:02:40.4]} 8... Nc6 {[%clk 0:02:46.9]} 9. O-O {[%clk 0:02:35.3]} 9... Qb6
{[%clk 0:02:25.2]} 10. Nxc6 {[%clk 0:02:28.6]} 10... bxc6 {[%clk 0:02:26.1]} 11.
Na4 {[%clk 0:02:25]} 11... Qc7 {[%clk 0:02:24.1]} 12. Bf4 {[%clk 0:02:24]} 12...
Qd8 {[%clk 0:02:20.3]} 13. Rc1 {[%clk 0:02:20]} 13... Bd7 {[%clk 0:02:17.2]} 14.
Qd2 {[%clk 0:02:07.1]} 14... Nh5 {[%clk 0:01:56]} 15. Bg5 {[%clk 0:01:53.8]}
15... Rb8 {[%clk 0:01:52.7]} 16. a3 {[%clk 0:01:36.2]} 16... f6 {[%clk
0:01:36.4]} 17. Bh6 {[%clk 0:01:30.8]} 17... e5 {[%clk 0:01:26]} 18. Bxg7 {[%clk
0:01:28.8]} 18... Nxg7 {[%clk 0:01:24.9]} 19. e4 {[%clk 0:01:22.6]} 19... dxe4
{[%clk 0:01:05.2]} 20. dxe5 {[%clk 0:00:52.5]} 20... f5 {[%clk 0:00:53.9]} 21.
Rfd1 {[%clk 0:00:52.5]} 21... Be6 {[%clk 0:00:45.1]} 22. Rxc6 {[%clk 0:00:40.2]}
22... Bb3 {[%clk 0:00:30.6]} 23. Qxd8 {[%clk 0:00:21.7]} 23... Rfxd8 {[%clk
0:00:31.5]} 24. Rxd8+ {[%clk 0:00:21.3]} 24... Rxd8 {[%clk 0:00:32.4]} 25. Nc3
{[%clk 0:00:21.4]} 25... Rd2 {[%clk 0:00:29.1]} 26. Bf1 {[%clk 0:00:09.4]} 26...
Rxb2 {[%clk 0:00:24.4]} 27. Rc8+ {[%clk 0:00:08.4]} 27... Kf7 {[%clk 0:00:23.4]}
28. Rc7+ {[%clk 0:00:09.1]} 28... Kf8 {[%clk 0:00:20.9]} 29. Rxa7 {[%clk
0:00:06.3]} 29... Rc2 {[%clk 0:00:18.2]} 30. Rc7 {[%clk 0:00:05.7]} 30... Rc1
{[%clk 0:00:17]} 31. Kg2 {[%clk 0:00:04.6]} 31... Ne6 {[%clk 0:00:17.2]} 32.
Rc8+ {[%clk 0:00:04.1]} 32... Ke7 {[%clk 0:00:17]} 33. a4 {[%clk 0:00:02.9]}
33... Kd7 {[%clk 0:00:15.7]} 34. Ba6 {[%clk 0:00:02.2]} 34... Nc7 {[%clk
0:00:13.9]} 0-1

[Event "Early-Titled-Tuesday-Blitz-February-13-2024"]
[Site "Chess.com"]
[Date "2024.02.13"]
[Round "9"]
[White "GulamaliRises"]
[Black "secrethawk1"]
[Result "1-0"]
[WhiteElo "2626"]
[BlackElo "2478"]
[TimeControl "180+1"]
[EndTime "9:48:28 PST"]
[Termination "GulamaliRises won by checkmate"]

1. e4 {[%clk 0:02:54.1]} 1... c6 {[%clk 0:02:58.4]} 2. d4 {[%clk 0:02:51.2]}
2... d5 {[%clk 0:02:59.3]} 3. e5 {[%clk 0:02:50.9]} 3... Bf5 {[%clk 0:02:58.4]}
4. Nf3 {[%clk 0:02:48.4]} 4... e6 {[%clk 0:02:57.9]} 5. Be2 {[%clk 0:02:48.4]}
5... c5 {[%clk 0:02:54.4]} 6. O-O {[%clk 0:02:46.5]} 6... Nc6 {[%clk 0:02:53.1]}
7. c3 {[%clk 0:02:47]} 7... Nge7 {[%clk 0:02:43.9]} 8. dxc5 {[%clk 0:02:41.6]}
8... Ng6 {[%clk 0:02:37.2]} 9. b4 {[%clk 0:02:41.1]} 9... Ngxe5 {[%clk
0:02:13.7]} 10. Nxe5 {[%clk 0:02:42]} 10... Nxe5 {[%clk 0:02:07.5]} 11. g4
{[%clk 0:02:38.7]} 11... Bxb1 {[%clk 0:02:03]} 12. Rxb1 {[%clk 0:02:28.2]} 12...
Be7 {[%clk 0:02:00]} 13. f4 {[%clk 0:02:27.6]} 13... Nc6 {[%clk 0:01:57.9]} 14.
Be3 {[%clk 0:02:25]} 14... O-O {[%clk 0:01:53.9]} 15. g5 {[%clk 0:02:00.1]}
15... Rc8 {[%clk 0:01:43.4]} 16. Bd4 {[%clk 0:01:56.3]} 16... Nxd4 {[%clk
0:01:37.7]} 17. cxd4 {[%clk 0:01:56]} 17... f6 {[%clk 0:01:36.8]} 18. Bg4 {[%clk
0:01:55.2]} 18... f5 {[%clk 0:01:26.9]} 19. Bf3 {[%clk 0:01:30.9]} 19... a6
{[%clk 0:01:09.4]} 20. Qe2 {[%clk 0:01:26.8]} 20... Qd7 {[%clk 0:00:31.7]} 21.
Rfe1 {[%clk 0:01:25]} 21... Kf7 {[%clk 0:00:29.3]} 22. a4 {[%clk 0:01:11.7]}
22... Rfe8 {[%clk 0:00:23.3]} 23. b5 {[%clk 0:01:10.8]} 23... axb5 {[%clk
0:00:20.2]} 24. axb5 {[%clk 0:01:11.7]} 24... Bf8 {[%clk 0:00:17.2]} 25. Ra1
{[%clk 0:00:48]} 25... Ra8 {[%clk 0:00:15.2]} 26. Kf2 {[%clk 0:00:42.4]} 26...
g6 {[%clk 0:00:13.6]} 27. Rac1 {[%clk 0:00:25.1]} 27... Bg7 {[%clk 0:00:12.6]}
28. c6 {[%clk 0:00:17.6]} 28... Bxd4+ {[%clk 0:00:10.8]} 29. Kg3 {[%clk
0:00:18]} 29... bxc6 {[%clk 0:00:10.4]} 30. Rxc6 {[%clk 0:00:18.9]} 30... e5
{[%clk 0:00:04.8]} 31. Rxg6 {[%clk 0:00:17.4]} 31... hxg6 {[%clk 0:00:03.6]} 32.
Qd2 {[%clk 0:00:15.8]} 32... exf4+ {[%clk 0:00:03.5]} 33. Kg2 {[%clk 0:00:16.2]}
33... Rxe1 {[%clk 0:00:03.8]} 34. Qxe1 {[%clk 0:00:17.1]} 34... Be3 {[%clk
0:00:03.4]} 35. Qd1 {[%clk 0:00:17.6]} 35... Rd8 {[%clk 0:00:02.9]} 36. Qb3
{[%clk 0:00:17.5]} 36... Kf8 {[%clk 0:00:02.9]} 37. b6 {[%clk 0:00:17.6]} 37...
Qb7 {[%clk 0:00:02.8]} 38. Qb4+ {[%clk 0:00:17.3]} 38... Kg8 {[%clk 0:00:03.1]}
39. Qb3 {[%clk 0:00:17.4]} 39... Qxb6 {[%clk 0:00:03.4]} 40. Bxd5+ {[%clk
0:00:17.7]} 40... Kg7 {[%clk 0:00:04.1]} 41. Qc4 {[%clk 0:00:17.5]} 41... Qd4
{[%clk 0:00:04.1]} 42. Qc7+ {[%clk 0:00:17.2]} 42... Kf8 {[%clk 0:00:03.3]} 43.
Qf7# {[%clk 0:00:17]} 1-0